fUST/lending_fUST_20240707
["ID","MTS","AMOUNT","RATE_DAILY","PERIOD"]
[331376452,1720300269122,-14509.56,0.00043835,120]
[331376453,1720300269138,-14509.56,0.00043835,120]
[331376454,1720300269151,-14509.56,0.00043835,120]
[331376455,1720300269166,-14509.56,0.00043835,120]
[331376456,1720300269185,-14509.56,0.00043835,120]
[331376457,1720300269228,-14509.76870831,0.00043835,120]
[331376458,1720300269240,-500.0,0.00043835,120]
[331376459,1720300269251,-524.68,0.00043835,120]
[331376460,1720300269270,-500.0,0.00043835,120]
[331376461,1720300269311,-151.0,0.00043835,14]
[331376462,1720300269326,-500.0,0.00043835,120]
[331376463,1720300269371,-500.0,0.00043835,120]
[331376464,1720300269405,-500.0,0.00043835,120]
[331376465,1720300269417,-9319.97,0.00043835,120]
[331376466,1720300269438,-2141.94,0.00043835,120]
[331376467,1720300269461,-500.0,0.00043835,120]
[331376468,1720300269472,-500.0,0.00043835,120]
[331376469,1720300269482,-504.03209099,0.00043835,120]
[331376470,1720300269520,-2263.54,0.00043835,120]
[331376471,1720300269537,-153.0,0.00043836,2]
[331376472,1720300269591,-153.0,0.00043836,2]
[331376473,1720300269622,-859.660652,0.00043867,30]
[331376474,1720300269637,-737.301326,0.00043867,30]
[331376475,1720300269657,-700.901339,0.00043867,30]
[331376476,1720300269668,-859.660653,0.00043867,30]
[331376477,1720300269688,-737.301327,0.00043867,30]
[331376478,1720300269698,-859.660653,0.00043867,30]
[331376479,1720300269709,-1438.202665,0.00043867,30]
[331376480,1720300269719,-1719.321306,0.00043867,30]
[331376481,1720300269731,-181.928663,0.00043867,30]
[331376482,1720300269744,-192.618439,0.00043867,30]
[331376483,1720300269757,-14828.29,0.00043888,120]
[331376484,1720300269781,-175.1,0.00043909,31]
[331376485,1720300269792,-152.0,0.00043909,31]
[331376486,1720300269828,-500.0,0.00044,120]
[331376487,1720300269841,-175.1,0.00044053,31]
[331376488,1720300269855,-152.0,0.00044053,31]
[331376489,1720300269874,-549.3625375,0.000441,30]
[331376490,1720300269888,-233.965974,0.00044101,30]
[331376491,1720300269912,-160.0,0.00044108,30]
[331376492,1720300269928,-236.56991232,0.00044108,30]
[331376493,1720300269939,-3335.68321124,0.00044109,61]
[331376494,1720300269999,-500.0,0.00044109,120]
[331376495,1720300270012,-500.0,0.00044109,120]
[331376496,1720300270027,-272.12384088,0.00044109,120]
[331376497,1720300270040,-500.0,0.00044109,2]
[331376498,1720300270051,-500.0,0.00044109,2]
[331376499,1720300270185,-503.87536572,0.00044109,120]
[331376500,1720300270211,-500.0,0.00044109,120]
[331376501,1720300270242,-500.0,0.00044109,120]
[331376502,1720300270253,-703.71,0.00044109,120]
[331376503,1720300270265,-500.0,0.00044109,120]
[331376504,1720300270275,-500.0,0.00044109,120]
[331376505,1720300270287,-433.70693193,0.00044109,120]
[331376506,1720300270302,-500.0,0.00044109,120]
[331376507,1720300270313,-500.0,0.00044109,120]
[331376508,1720300270327,-581.34,0.00044109,120]
[331376509,1720300270350,-500.0,0.00044109,120]
[331376510,1720300270365,-500.0,0.00044109,120]
[331376511,1720300270375,-500.0,0.00044109,120]
[331376512,1720300270397,-515.028954,0.00044109,120]
[331376513,1720300270416,-500.0,0.00044109,120]
[331376514,1720300270433,-641.39706208,0.00044109,120]
[331376515,1720300270447,-782.12,0.00044109,120]
[331376516,1720300270458,-500.0,0.00044109,120]
[331376517,1720300270480,-500.0,0.00044109,120]
[331376518,1720300270491,-508.85,0.00044109,120]
[331376519,1720300270507,-500.0,0.00044109,120]
[331376520,1720300270518,-1040.57,0.00044109,120]
[331376521,1720300270529,-500.0,0.00044109,120]
[331376522,1720300270544,-500.0,0.00044109,120]
[331376523,1720300270557,-500.0,0.00044109,120]
[331376524,1720300270568,-500.0,0.00044109,120]
[331376525,1720300270601,-500.0,0.00044109,2]
[331376526,1720300270619,-2076.67,0.00044109,120]
[331376527,1720300270653,-500.0,0.00044109,120]
[331376528,1720300270665,-500.0,0.00044109,120]
[331376529,1720300270676,-500.0,0.00044109,120]
[331376530,1720300270713,-500.0,0.00044109,120]
[331376531,1720300270723,-500.0,0.00044109,120]
[331376532,1720300270734,-500.0,0.00044109,120]
[331376533,1720300270749,-500.0,0.00044109,120]
[331376534,1720300270764,-500.0,0.00044109,120]
[331376535,1720300270786,-500.0,0.00044109,120]
[331376536,1720300270821,-500.0,0.00044109,120]
[331376537,1720300270844,-500.0,0.00044109,120]
[331376538,1720300270857,-500.0,0.00044109,120]
[331376539,1720300270887,-500.0,0.00044109,120]
[331376540,1720300270900,-500.0,0.00044109,120]
[331376541,1720300270928,-500.0,0.00044109,120]
[331376542,1720300270940,-500.0,0.00044109,120]
[331376543,1720300270984,-500.0,0.00044109,120]
[331376544,1720300270994,-500.0,0.00044109,120]
[331376545,1720300271048,-500.0,0.00044109,120]
[331376546,1720300271094,-500.0,0.00044109,120]
[331376547,1720300271118,-500.0,0.00044109,120]
[331376548,1720300271129,-500.0,0.00044109,120]
[331376549,1720300271141,-500.0,0.00044109,120]
[331376550,1720300271160,-502.07410763,0.00044109,120]
[331376551,1720300271171,-500.0,0.00044109,120]
[331376552,1720300271184,-500.0,0.00044109,120]
[331376553,1720300271209,-500.0,0.00044109,120]
[331376554,1720300271223,-500.0,0.00044109,120]
[331376555,1720300271243,-500.0,0.00044109,120]
[331376556,1720300271254,-501.64977003,0.00044109,120]
[331376557,1720300271315,-238.46056608,0.00044109,120]
[331376558,1720300271332,-500.0,0.00044109,120]
[331376559,1720300271343,-404.14729114,0.00044109,120]
[331376560,1720300271353,-500.0,0.00044109,120]
[331376561,1720300271372,-500.0,0.00044109,120]
[331376562,1720300271400,-500.0,0.00044109,120]
[331376563,1720300271410,-500.0,0.00044109,120]
[331376564,1720300271429,-500.0,0.00044109,120]
[331376565,1720300271439,-500.0,0.00044109,120]
[331376566,1720300271450,-500.0,0.00044109,120]
[331376567,1720300271490,-500.0,0.00044109,120]
[331376568,1720300271502,-500.0,0.00044109,120]
[331376569,1720300271521,-500.0,0.00044109,120]
[331376570,1720300271532,-500.0,0.00044109,120]
[331376571,1720300271545,-500.0,0.00044109,120]
[331376572,1720300271561,-510.37032324,0.00044109,120]
[331376573,1720300271588,-500.0,0.00044109,120]
[331376574,1720300271624,-500.0,0.00044109,120]
[331376575,1720300271644,-500.0,0.00044109,120]
[331376576,1720300271673,-500.0,0.00044109,120]
[331376577,1720300271683,-501.28803572,0.00044109,120]
[331376578,1720300271693,-500.0,0.00044109,120]
[331376579,1720300271703,-500.0,0.00044109,120]
[331376580,1720300271713,-507.36718383,0.00044109,120]
[331376581,1720300271724,-500.0,0.00044109,7]
[331376582,1720300271735,-557.76156882,0.00044109,120]
[331376583,1720300271747,-500.0,0.00044109,120]
[331376584,1720300271757,-1019.87,0.00044109,120]
[331376585,1720300271771,-500.0,0.00044109,120]
[331376586,1720300271799,-500.0,0.00044109,120]
[331376587,1720300271809,-186.98522794,0.00044109,120]
[331376588,1720300271846,-500.0,0.00044109,120]
[331376589,1720300271857,-197.22880303,0.00044109,120]
[331376590,1720300271872,-500.0,0.00044109,120]
[331376591,1720300271884,-500.0,0.00044109,120]
[331376592,1720300271895,-500.0,0.00044109,120]
[331376593,1720300271906,-430.09991306,0.00044109,120]
[331376594,1720300271917,-580.94,0.00044109,120]
[331376595,1720300271928,-500.0,0.00044109,120]
[331376596,1720300271937,-500.0,0.00044109,120]
[331376597,1720300271948,-578.69,0.00044109,120]
[331376598,1720300271958,-500.0,0.00044109,120]
[331376599,1720300271968,-500.0,0.00044109,120]
[331376600,1720300271989,-500.0,0.00044109,120]
[331376601,1720300272003,-500.0,0.00044109,120]
[331376602,1720300272015,-1012.14,0.00044109,120]
[331376603,1720300272031,-500.0,0.00044109,120]
[331376604,1720300272043,-500.0,0.00044109,120]
[331376605,1720300272065,-500.0,0.00044109,120]
[331376606,1720300272075,-500.0,0.00044109,120]
[331376607,1720300272091,-500.0,0.00044109,120]
[331376608,1720300272123,-237.30578159,0.00044109,120]
[331376609,1720300272134,-500.0,0.00044109,120]
[331376610,1720300272148,-500.0,0.00044109,120]
[331376611,1720300272158,-500.0,0.00044109,120]
[331376612,1720300272171,-736.24,0.00044109,120]
[331376613,1720300272181,-500.0,0.00044109,120]
[331376614,1720300272193,-538.2,0.00044109,120]
[331376615,1720300272202,-500.0,0.00044109,120]
[331376616,1720300272218,-500.0,0.00044109,120]
[331376617,1720300272230,-500.0,0.00044109,120]
[331376618,1720300272245,-500.0,0.00044109,120]
[331376619,1720300272277,-500.0,0.00044109,120]
[331376620,1720300272287,-545.2,0.00044109,120]
[331376621,1720300272298,-500.0,0.00044109,120]
[331376622,1720300272308,-500.0,0.00044109,120]
[331376623,1720300272325,-501.56325905,0.00044109,120]
[331376624,1720300272352,-500.0,0.00044109,120]
[331376625,1720300272363,-500.0,0.00044109,120]
[331376626,1720300272386,-500.0,0.00044109,120]
[331376627,1720300272398,-500.0,0.00044109,120]
[331376628,1720300272409,-196.824,0.00044109,14]
[331376629,1720300272419,-500.0,0.00044109,120]
[331376630,1720300272430,-500.0,0.00044109,120]
[331376631,1720300272441,-508.49626885,0.00044109,120]
[331376632,1720300272451,-500.0,0.00044109,120]
[331376633,1720300272494,-500.0,0.00044109,120]
[331376634,1720300272512,-500.0,0.00044109,120]
[331376635,1720300272532,-500.0,0.00044109,120]
[331376636,1720300272545,-500.0,0.00044109,120]
[331376637,1720300272557,-503.56727095,0.00044109,120]
[331376638,1720300272579,-151.0,0.00044109,14]
[331376639,1720300272602,-151.0,0.00044109,14]
[331376640,1720300272627,-151.0,0.00044109,14]
[331376641,1720300272638,-752.8,0.00044109,120]
[331376642,1720300272653,-500.0,0.00044109,120]
[331376643,1720300272687,-500.0,0.00044109,120]
[331376644,1720300272698,-500.0,0.00044109,120]
[331376645,1720300272707,-2708.35,0.00044109,120]
[331376646,1720300272731,-500.0,0.00044109,120]
[331376647,1720300272741,-500.0,0.00044109,120]
[331376648,1720300272765,-500.0,0.00044109,120]
[331376649,1720300272784,-500.0,0.00044109,120]
[331376650,1720300272795,-709.44,0.00044109,120]
[331376651,1720300272829,-500.0,0.00044109,120]
[331376652,1720300272853,-500.0,0.00044109,120]
[331376653,1720300272868,-500.0,0.00044109,120]
[331376654,1720300272880,-500.0,0.00044109,120]
[331376655,1720300272898,-500.0,0.00044109,120]
[331376656,1720300272914,-500.0,0.00044109,120]
[331376657,1720300272958,-777.26,0.00044109,120]
[331376658,1720300272974,-500.0,0.00044109,120]
[331376659,1720300272992,-500.0,0.00044109,120]
[331376660,1720300273018,-516.71791082,0.00044109,120]
[331376661,1720300273034,-500.0,0.00044109,120]
[331376662,1720300273055,-1205.64,0.00044109,120]
[331376663,1720300273068,-500.0,0.00044109,120]
[331376664,1720300273079,-500.0,0.00044109,120]
[331376665,1720300273105,-531.64402379,0.00044109,120]
[331376666,1720300273116,-815.84,0.00044109,120]
[331376667,1720300273126,-500.0,0.00044109,120]
[331376668,1720300273138,-500.0,0.00044109,120]
[331376669,1720300273148,-511.75449694,0.00044109,120]
[331376670,1720300273164,-1327.37,0.00044109,120]
[331376671,1720300273174,-500.0,0.00044109,120]
[331376672,1720300273189,-500.0,0.00044109,120]
[331376673,1720300273199,-500.0,0.00044109,120]
[331376674,1720300273209,-500.0,0.00044109,120]
[331376675,1720300273220,-2193.54,0.00044109,120]
[331376676,1720300273230,-500.0,0.00044109,120]
[331376677,1720300273250,-508.01703645,0.00044109,120]
[331376678,1720300273260,-500.0,0.00044109,120]
[331376679,1720300273286,-500.0,0.00044109,120]
[331376680,1720300273313,-500.0,0.00044109,120]
[331376681,1720300273332,-200.0,0.00044109,7]
[331376682,1720300273358,-531.29464767,0.00044109,120]
[331376683,1720300273372,-500.0,0.00044109,120]
[331376684,1720300273439,-500.0,0.00044109,120]
[331376685,1720300273449,-500.0,0.00044109,120]
[331376686,1720300273491,-908.8,0.00044109,120]
[331376687,1720300273517,-630.16,0.00044109,120]
[331376688,1720300273528,-500.0,0.00044109,120]
[331376689,1720300273538,-768.29,0.00044109,120]
[331376690,1720300273548,-500.62870715,0.00044109,120]
[331376691,1720300273562,-500.0,0.00044109,120]
[331376692,1720300273574,-500.0,0.00044109,120]
[331376693,1720300273584,-500.0,0.00044109,120]
[331376694,1720300273606,-500.0,0.00044109,120]
[331376695,1720300273631,-500.0,0.00044109,120]
[331376696,1720300273640,-500.0,0.00044109,120]
[331376697,1720300273653,-500.0,0.00044109,120]
[331376698,1720300273665,-500.0,0.00044109,20]
[331376699,1720300273678,-500.0,0.00044109,120]
[331376700,1720300273692,-500.0,0.00044109,120]
[331376701,1720300273704,-583.07,0.00044109,120]
[331376702,1720300273714,-500.0,0.00044109,120]
[331376703,1720300273733,-500.0,0.00044109,120]
[331376704,1720300273760,-500.0,0.00044109,120]
[331376705,1720300273780,-500.0,0.00044109,120]
[331376706,1720300273790,-500.0,0.00044109,120]
[331376707,1720300273834,-538.8,0.00044109,120]
[331376708,1720300273850,-574.1318985,0.00044109,120]
[331376709,1720300273870,-500.0,0.00044109,120]
[331376710,1720300273883,-2000.0,0.00044109,60]
[331376711,1720300273899,-500.0,0.00044109,120]
[331376712,1720300273939,-500.0,0.00044109,120]
[331376713,1720300273955,-500.0,0.00044109,120]
[331376714,1720300273966,-1666.66,0.00044109,7]
[331376715,1720300273978,-500.0,0.00044109,120]
[331376716,1720300273990,-500.0,0.00044109,120]
[331376717,1720300274005,-931.04,0.00044109,120]
[331376718,1720300274041,-500.0,0.00044109,120]
[331376719,1720300274058,-407.05237673,0.00044109,120]
[331376720,1720300274070,-500.0,0.00044109,120]
[331376721,1720300274082,-583.25,0.00044109,120]
[331376722,1720300274104,-500.0,0.00044109,120]
[331376723,1720300274115,-422.27089431,0.00044109,120]
[331376724,1720300274138,-500.0,0.00044109,120]
[331376725,1720300274154,-500.0,0.00044109,120]
[331376726,1720300274166,-500.0,0.00044109,120]
[331376727,1720300274177,-501.28836627,0.00044109,120]
[331376728,1720300274191,-500.0,0.00044109,120]
[331376729,1720300274214,-500.0,0.00044109,120]
[331376730,1720300274331,-500.0,0.00044109,120]
[331376731,1720300274356,-500.0,0.00044109,120]
[331376732,1720300274387,-1344.01,0.00044109,120]
[331376733,1720300274400,-500.0,0.00044109,120]
[331376734,1720300274411,-504.1135425,0.00044109,120]
[331376735,1720300274422,-711.39,0.00044109,120]
[331376736,1720300274440,-500.0,0.00044109,120]
[331376737,1720300274450,-500.0,0.00044109,30]
[331376738,1720300274460,-1239.37,0.00044109,120]
[331376739,1720300274471,-342.68734849,0.00044109,120]
[331376740,1720300274496,-1070.6,0.00044109,120]
[331376741,1720300274521,-500.0,0.00044109,120]
[331376742,1720300274533,-300.7377108,0.00044109,120]
[331376743,1720300274550,-567.43646285,0.00044109,7]
[331376744,1720300274562,-506.08957986,0.00044109,120]
[331376745,1720300274580,-2623.55,0.00044109,120]
[331376746,1720300274591,-500.0,0.00044109,120]
[331376747,1720300274604,-500.0,0.00044109,120]
[331376748,1720300274616,-659.04,0.00044109,120]
[331376749,1720300274629,-508.7,0.00044109,120]
[331376750,1720300274643,-500.0,0.00044109,120]
[331376751,1720300274655,-500.0,0.00044109,120]
[331376752,1720300274669,-500.0,0.00044109,120]
[331376753,1720300274700,-344.75700334,0.00044109,120]
[331376754,1720300274710,-500.0,0.00044109,120]
[331376755,1720300274721,-1257.59,0.00044109,120]
[331376756,1720300274731,-500.0,0.00044109,120]
[331376757,1720300274765,-500.0,0.00044109,120]
[331376758,1720300274775,-500.0,0.00044109,120]
[331376759,1720300274818,-500.0,0.00044109,120]
[331376760,1720300274830,-500.0,0.00044109,120]
[331376761,1720300274871,-500.0,0.00044109,120]
[331376762,1720300274901,-500.0,0.00044109,120]
[331376763,1720300274911,-500.0,0.00044109,120]
[331376764,1720300274924,-500.0,0.00044109,120]
[331376765,1720300274937,-500.0,0.00044109,120]
[331376766,1720300274952,-500.0,0.00044109,120]
[331376767,1720300274962,-500.0,0.00044109,120]
[331376768,1720300274979,-500.0,0.00044109,120]
[331376769,1720300274989,-832.31,0.00044109,120]
[331376770,1720300275031,-500.0,0.00044109,120]
[331376771,1720300275063,-1106.3,0.00044109,120]
[331376772,1720300275076,-1302.26,0.00044109,120]
[331376773,1720300275092,-500.0,0.00044109,120]
[331376774,1720300275106,-500.0,0.00044109,120]
[331376775,1720300275117,-500.0,0.00044109,120]
[331376776,1720300275141,-500.0,0.00044109,120]
[331376777,1720300275221,-500.0,0.00044109,120]
[331376778,1720300275277,-638.14,0.00044109,120]
[331376779,1720300275305,-500.0,0.00044109,120]
[331376780,1720300275316,-500.0,0.00044109,120]
[331376781,1720300275338,-506.52502981,0.00044109,120]
[331376782,1720300275348,-2503.63,0.00044109,120]
[331376783,1720300275360,-504.35788494,0.00044109,120]
[331376784,1720300275385,-500.0,0.00044109,120]
[331376785,1720300275425,-500.0,0.00044109,120]
[331376786,1720300275444,-931.57,0.00044109,120]
[331376787,1720300275459,-500.0,0.00044109,120]
[331376788,1720300275475,-500.0,0.00044109,120]
[331376789,1720300275486,-439.92495929,0.00044109,120]
[331376790,1720300275503,-1000.68,0.00044109,120]
[331376791,1720300275514,-501.43352738,0.00044109,120]
[331376792,1720300275594,-500.0,0.00044109,120]
[331376793,1720300275606,-500.0,0.00044109,120]
[331376794,1720300275617,-1143.26,0.00044109,120]
[331376795,1720300275627,-500.0,0.00044109,120]
[331376796,1720300275639,-500.0,0.00044109,120]
[331376797,1720300275655,-500.0,0.00044109,120]
[331376798,1720300275668,-500.0,0.00044109,120]
[331376799,1720300275678,-1950.15,0.00044109,120]
[331376800,1720300275713,-500.0,0.00044109,120]
[331376801,1720300275730,-627.35,0.00044109,120]
[331376802,1720300275742,-1156.22,0.00044109,120]
[331376803,1720300275753,-500.0,0.00044109,120]
[331376804,1720300275770,-1103.38,0.00044109,120]
[331376805,1720300275798,-500.0,0.00044109,120]
[331376806,1720300275810,-500.0,0.00044109,120]
[331376807,1720300275821,-500.0,0.00044109,120]
[331376808,1720300275841,-1200.18,0.00044109,120]
[331376809,1720300275879,-500.0,0.00044109,120]
[331376810,1720300275890,-570.59635741,0.00044109,120]
[331376811,1720300275904,-501.43587116,0.00044109,120]
[331376812,1720300275914,-151.0,0.00044109,14]
[331376813,1720300275933,-1205.62,0.00044109,120]
[331376814,1720300275945,-151.0,0.00044109,14]
[331376815,1720300275956,-500.0,0.00044109,120]
[331376816,1720300275967,-801.39,0.00044109,120]
[331376817,1720300275978,-1014.57,0.00044109,120]
[331376818,1720300276045,-500.0,0.00044109,120]
[331376819,1720300276056,-500.0,0.00044109,120]
[331376820,1720300276093,-500.0,0.00044109,120]
[331376821,1720300276105,-554.81,0.00044109,120]
[331376822,1720300276135,-689.59,0.00044109,120]
[331376823,1720300276148,-500.0,0.00044109,120]
[331376824,1720300276166,-500.0,0.00044109,120]
[331376825,1720300276177,-500.0,0.00044109,120]
[331376826,1720300276192,-500.0,0.00044109,120]
[331376827,1720300276234,-500.0,0.00044109,120]
[331376828,1720300276246,-500.0,0.00044109,120]
[331376829,1720300276256,-500.0,0.00044109,120]
[331376830,1720300276281,-782.32,0.00044109,120]
[331376831,1720300276291,-500.0,0.00044109,120]
[331376832,1720300276306,-500.0,0.00044109,120]
[331376833,1720300276327,-500.0,0.00044109,120]
[331376834,1720300276358,-500.0,0.00044109,120]
[331376835,1720300276376,-151.0,0.00044109,14]
[331376836,1720300276389,-500.0,0.00044109,120]
[331376837,1720300276407,-151.0,0.00044109,14]
[331376838,1720300276420,-2434.97,0.00044109,120]
[331376839,1720300276430,-15911.88,0.00044109,120]
[331376840,1720300276440,-221.2452,0.00044109,14]
[331376841,1720300276451,-500.0,0.00044109,120]
[331376842,1720300276485,-500.0,0.00044109,120]
[331376843,1720300276497,-2154.52,0.00044109,120]
[331376844,1720300276511,-500.0,0.00044109,120]
[331376845,1720300276529,-500.0,0.00044109,120]
[331376846,1720300276543,-500.0,0.00044109,120]
[331376847,1720300276588,-669.27,0.00044109,120]
[331376848,1720300276598,-500.0,0.00044109,120]
[331376849,1720300276612,-686.72,0.00044109,120]
[331376850,1720300276623,-500.0,0.00044109,120]
[331376851,1720300276645,-878.7,0.00044109,120]
[331376852,1720300276659,-500.0,0.00044109,120]
[331376853,1720300276685,-593.67353926,0.00044109,120]
[331376854,1720300276751,-500.0,0.00044109,120]
[331376855,1720300276766,-500.0,0.00044109,120]
[331376856,1720300276789,-500.0,0.00044109,120]
[331376857,1720300276801,-500.0,0.00044109,120]
[331376858,1720300276819,-553.14647283,0.00044109,120]
[331376859,1720300276854,-500.0,0.00044109,7]
[331376860,1720300276866,-501.0474475,0.00044109,120]
[331376861,1720300276879,-500.0,0.00044109,120]
[331376862,1720300276890,-364.54444425,0.00044109,120]
[331376863,1720300276900,-414.27984714,0.00044109,120]
[331376864,1720300276911,-500.0,0.00044109,120]
[331376865,1720300276922,-500.0,0.00044109,120]
[331376866,1720300276938,-500.0,0.00044109,120]
[331376867,1720300276949,-500.0,0.00044109,120]
[331376868,1720300276959,-500.0,0.00044109,120]
[331376869,1720300276970,-772.57,0.00044109,120]
[331376870,1720300276980,-3826.27,0.00044109,120]
[331376871,1720300276990,-1881.67,0.00044109,120]
[331376872,1720300277016,-786.68,0.00044109,120]
[331376873,1720300277056,-500.0,0.00044109,20]
[331376874,1720300277085,-500.0,0.00044109,120]
[331376875,1720300277118,-500.0,0.00044109,120]
[331376876,1720300277129,-500.0,0.00044109,120]
[331376877,1720300277140,-500.0,0.00044109,120]
[331376878,1720300277172,-1419.97,0.00044109,120]
[331376879,1720300277182,-500.0,0.00044109,120]
[331376880,1720300277193,-1284.13,0.00044109,120]
[331376881,1720300277204,-500.0,0.00044109,120]
[331376882,1720300277216,-511.10086991,0.00044109,120]
[331376883,1720300277247,-500.0,0.00044109,120]
[331376884,1720300277258,-500.0,0.00044109,120]
[331376885,1720300277273,-500.0,0.00044109,120]
[331376886,1720300277296,-500.0,0.00044109,120]
[331376887,1720300277306,-500.0,0.00044109,120]
[331376888,1720300277318,-500.0,0.00044109,120]
[331376889,1720300277332,-512.09116255,0.00044109,120]
[331376890,1720300277356,-500.0,0.00044109,120]
[331376891,1720300277369,-500.0,0.00044109,120]
[331376892,1720300277379,-522.9874008,0.00044109,120]
[331376893,1720300277392,-500.0,0.00044109,120]
[331376894,1720300277431,-754.92,0.00044109,120]
[331376895,1720300277462,-3510.41,0.00044109,120]
[331376896,1720300277481,-500.0,0.00044109,120]
[331376897,1720300277492,-500.0,0.00044109,120]
[331376898,1720300277507,-519.0389018,0.00044109,120]
[331376899,1720300277519,-1603.48,0.00044109,120]
[331376900,1720300277555,-500.0,0.00044109,120]
[331376901,1720300277565,-651.65,0.00044109,120]
[331376902,1720300277580,-500.0,0.00044109,120]
[331376903,1720300277590,-500.0,0.00044109,120]
[331376904,1720300277612,-2646.32,0.00044109,120]
[331376905,1720300277623,-500.0,0.00044109,120]
[331376906,1720300277638,-511.73835764,0.00044109,120]
[331376907,1720300277649,-500.0,0.00044109,120]
[331376908,1720300277659,-500.0,0.00044109,120]
[331376909,1720300277676,-23718.61,0.00044109,120]
[331376910,1720300277698,-1920.15,0.00044109,120]
[331376911,1720300277748,-524.7729764,0.00044109,120]
[331376912,1720300277758,-4446.22,0.00044109,120]
[331376913,1720300277781,-500.0,0.00044109,120]
[331376914,1720300277802,-500.0,0.00044109,120]
[331376915,1720300277821,-648.93802281,0.00044109,120]
[331376916,1720300277833,-850.11,0.00044109,120]
[331376917,1720300277842,-1678.08,0.00044109,120]
[331376918,1720300277867,-200.0,0.00044109,7]
[331376919,1720300277882,-592.34,0.00044109,120]
[331376920,1720300277892,-424.74929953,0.00044109,120]
[331376921,1720300277902,-500.0,0.00044109,120]
[331376922,1720300277968,-2384.55,0.00044109,120]
[331376923,1720300277979,-500.0,0.00044109,120]
[331376924,1720300277994,-1053.26,0.00044109,120]
[331376925,1720300278015,-500.0,0.00044109,120]
[331376926,1720300278029,-500.0,0.00044109,120]
[331376927,1720300278039,-500.0,0.00044109,120]
[331376928,1720300278052,-500.0,0.00044109,120]
[331376929,1720300278071,-500.0,0.00044109,120]
[331376930,1720300278081,-500.0,0.00044109,120]
[331376931,1720300278092,-500.0,0.00044109,120]
[331376932,1720300278137,-1164.82,0.00044109,120]
[331376933,1720300278148,-500.0,0.00044109,120]
[331376934,1720300278160,-734.8,0.00044109,120]
[331376935,1720300278185,-500.0,0.00044109,120]
[331376936,1720300278206,-500.0,0.00044109,120]
[331376937,1720300278232,-500.0,0.00044109,120]
[331376938,1720300278244,-500.0,0.00044109,120]
[331376939,1720300278255,-508.45396723,0.00044109,25]
[331376940,1720300278267,-500.0,0.00044109,120]
[331376941,1720300278382,-500.0,0.00044109,120]
[331376942,1720300278405,-500.0,0.00044109,120]
[331376943,1720300278414,-2683.89,0.00044109,120]
[331376944,1720300278430,-3203.78,0.00044109,120]
[331376945,1720300278445,-451.83409697,0.00044109,120]
[331376946,1720300278455,-512.33511608,0.00044109,120]
[331376947,1720300278465,-500.0,0.00044109,120]
[331376948,1720300278475,-500.0,0.00044109,120]
[331376949,1720300278503,-500.0,0.00044109,120]
[331376950,1720300278551,-1709.67,0.00044109,120]
[331376951,1720300278563,-500.0,0.00044109,120]